[Event "Titled Tuesday Blitz May 16 Early 2023"]
[White "DubiousM0ves532"]
[Black "Herrera Ortiz, Miguel"]
[BlackFideId "5100550"]
[WhiteElo "2466"]
[BlackElo "2617"]
[Result "0-1"]
[Round "03"]
[TimeControl "180+2"]
[Date "2023.05.16"]
[WhiteClock "0:00:00"]
[BlackClock "0:00:15"]

1. Nf3 {[%clk 0:02:58]}  e6 {[%clk 0:02:59]} 2. c4 {[%clk 0:02:56]}  d5 {[%clk 0:02:59]} 3. cxd5 {[%clk 0:02:55]}  exd5 {[%clk 0:02:59]} 4. d4 {[%clk 0:02:56]}  Nf6 {[%clk 0:02:59]} 5. Nc3 {[%clk 0:02:56]}  Be7 {[%clk 0:02:57]} 6. Bg5 {[%clk 0:02:55]}  O-O {[%clk 0:02:57]} 7. e3 {[%clk 0:02:52]}  Nbd7 {[%clk 0:02:56]} 8. Bd3 {[%clk 0:02:48]}  c6 {[%clk 0:02:56]} 9. O-O {[%clk 0:02:47]}  Re8 {[%clk 0:02:56]} 10. Qc2 {[%clk 0:02:46]}  Nf8 {[%clk 0:02:56]} 11. Rab1 {[%clk 0:02:43]}  a5 {[%clk 0:02:55]} 12. a3 {[%clk 0:02:43]}  Ne4 {[%clk 0:02:55]} 13. Bxe4 {[%clk 0:02:11]}  Bxg5 {[%clk 0:02:51]} 14. Bd3 {[%clk 0:02:11]}  Be7 {[%clk 0:02:47]} 15. b4 {[%clk 0:02:11]}  axb4 {[%clk 0:02:47]} 16. axb4 {[%clk 0:02:12]}  Bd6 {[%clk 0:02:45]} 17. b5 {[%clk 0:02:10]}  Bg4 {[%clk 0:02:42]} 18. Nd2 {[%clk 0:01:54]}  Re6 {[%clk 0:02:18]} 19. g3 {[%clk 0:01:01]}  Qf6 {[%clk 0:01:57]} 20. bxc6 {[%clk 0:00:49]}  bxc6 {[%clk 0:01:58]} 21. Rfc1 {[%clk 0:00:42]}  h5 {[%clk 0:01:55]} 22. Nf1 {[%clk 0:00:34]}  h4 {[%clk 0:01:42]} 23. Na4 {[%clk 0:00:26]}  hxg3 {[%clk 0:01:30]} 24. hxg3 {[%clk 0:00:26]}  Bf3 {[%clk 0:01:04]} 25. Nh2 {[%clk 0:00:21]}  Ba3 {[%clk 0:00:36]} 26. Nxf3 {[%clk 0:00:15]}  Bxc1 {[%clk 0:00:34]} 27. Ne5 {[%clk 0:00:12]}  Ba3 {[%clk 0:00:29]} 28. Nb6 {[%clk 0:00:06]}  Rd8 {[%clk 0:00:19]} 29. Bf5 {[%clk 0:00:03]}  Red6 {[%clk 0:00:17]} 30. Bd3 {[%clk 0:00:00]}  Ne6 {[%clk 0:00:15]} 0-1


[Site "https://www.chess.com"]

[Event "Titled Tuesday Blitz May 16 Early 2023"]
[White "Akash G"]
[Black "Rios Escobar, Adan"]
[WhiteFideId "5040299"]
[BlackFideId "3403645"]
[WhiteElo "2395"]
[BlackElo "2458"]
[Result "1-0"]
[Round "03"]
[TimeControl "180+2"]
[Date "2023.05.16"]
[WhiteClock "0:00:22"]
[BlackClock "0:00:01"]

1. d4 {[%clk 0:02:58]}  Nf6 {[%clk 0:02:56]} 2. Nf3 {[%clk 0:02:58]}  g6 {[%clk 0:02:53]} 3. b3 {[%clk 0:02:57]}  Bg7 {[%clk 0:02:49]} 4. Bb2 {[%clk 0:02:58]}  O-O {[%clk 0:02:48]} 5. g3 {[%clk 0:02:58]}  b6 {[%clk 0:02:47]} 6. Bg2 {[%clk 0:02:58]}  Bb7 {[%clk 0:02:47]} 7. O-O {[%clk 0:02:58]}  a5 {[%clk 0:02:48]} 8. Nbd2 {[%clk 0:02:50]}  a4 {[%clk 0:02:48]} 9. Rb1 {[%clk 0:02:47]}  d6 {[%clk 0:02:47]} 10. c4 {[%clk 0:02:31]}  Nbd7 {[%clk 0:02:46]} 11. Qc2 {[%clk 0:02:29]}  Re8 {[%clk 0:02:33]} 12. d5 {[%clk 0:02:19]}  e6 {[%clk 0:02:20]} 13. dxe6 {[%clk 0:02:16]}  fxe6 {[%clk 0:02:20]} 14. b4 {[%clk 0:02:15]}  a3 {[%clk 0:02:17]} 15. Ba1 {[%clk 0:02:14]}  Qe7 {[%clk 0:02:06]} 16. Nd4 {[%clk 0:02:10]}  Bxg2 {[%clk 0:02:05]} 17. Kxg2 {[%clk 0:02:11]}  Qf7 {[%clk 0:01:51]} 18. Nb5 {[%clk 0:02:02]}  Nb8 {[%clk 0:01:15]} 19. Rb3 {[%clk 0:01:56]}  Nc6 {[%clk 0:01:12]} 20. Rfb1 {[%clk 0:01:46]}  Rf8 {[%clk 0:00:41]} 21. Rf3 {[%clk 0:01:34]}  Ne5 {[%clk 0:00:19]} 22. Bxe5 {[%clk 0:01:33]}  dxe5 {[%clk 0:00:20]} 23. Ne4 {[%clk 0:01:27]}  Qe7 {[%clk 0:00:20]} 24. Nxa3 {[%clk 0:01:13]}  Nxe4 {[%clk 0:00:16]} 25. Qxe4 {[%clk 0:01:14]}  Rad8 {[%clk 0:00:10]} 26. Rd3 {[%clk 0:00:59]}  Rd4 {[%clk 0:00:08]} 27. Rxd4 {[%clk 0:00:55]}  exd4 {[%clk 0:00:08]} 28. Nc2 {[%clk 0:00:52]}  Qf6 {[%clk 0:00:06]} 29. f3 {[%clk 0:00:51]}  e5 {[%clk 0:00:02]} 30. Ne1 {[%clk 0:00:51]}  Qe6 {[%clk 0:00:02]} 31. Rc1 {[%clk 0:00:48]}  Rb8 {[%clk 0:00:01]} 32. a4 {[%clk 0:00:45]}  Qd6 {[%clk 0:00:01]} 33. Nd3 {[%clk 0:00:44]}  c5 {[%clk 0:00:01]} 34. b5 {[%clk 0:00:42]}  Rc8 {[%clk 0:00:01]} 35. Ra1 {[%clk 0:00:41]}  Rd8 {[%clk 0:00:01]} 36. a5 {[%clk 0:00:41]}  bxa5 {[%clk 0:00:02]} 37. Rxa5 {[%clk 0:00:42]}  Rb8 {[%clk 0:00:02]} 38. Ra6 {[%clk 0:00:40]}  Rb6 {[%clk 0:00:02]} 39. Qa8+ {[%clk 0:00:36]}  Kf7 {[%clk 0:00:02]} 40. Ra7+ {[%clk 0:00:35]}  Kf6 {[%clk 0:00:02]} 41. Nf2 {[%clk 0:00:27]}  g5 {[%clk 0:00:01]} 42. Ne4+ {[%clk 0:00:27]}  Kg6 {[%clk 0:00:01]} 43. Qe8+ {[%clk 0:00:24]}  Kh6 {[%clk 0:00:01]} 44. Nxd6 {[%clk 0:00:22]}  Rxd6 {[%clk 0:00:02]} 45. Qe7 {[%clk 0:00:21]}  Rg6 {[%clk 0:00:02]} 46. b6 {[%clk 0:00:21]}  e4 {[%clk 0:00:02]} 47. fxe4 {[%clk 0:00:21]}  d3 {[%clk 0:00:02]} 48. exd3 {[%clk 0:00:22]}  Kh5 {[%clk 0:00:01]} 49. h3 {[%clk 0:00:22]}  Bf6 {[%clk 0:00:02]} 50. Qxh7+ {[%clk 0:00:21]}  Rh6 {[%clk 0:00:02]} 51. g4+ {[%clk 0:00:21]}  Kh4 {[%clk 0:00:01]} 52. Qxh6# {[%clk 0:00:22]} 1-0


[Site "https://www.chess.com"]

[Event "Titled Tuesday Blitz May 16 Early 2023"]
[White "Osinovsky, Stepan"]
[Black "Kononenko, Dmitry"]
[WhiteFideId "4157354"]
[BlackFideId "14113538"]
[WhiteElo "2222"]
[BlackElo "2198"]
[Result "1/2-1/2"]
[Round "03"]
[TimeControl "180+2"]
[Date "2023.05.16"]
[WhiteClock "0:00:44"]
[BlackClock "0:00:57"]

1. e4 {[%clk 0:03:00]}  d5 {[%clk 0:02:57]} 2. exd5 {[%clk 0:03:00]}  Qxd5 {[%clk 0:02:58]} 3. Nc3 {[%clk 0:03:01]}  Qa5 {[%clk 0:02:58]} 4. g3 {[%clk 0:03:01]}  c6 {[%clk 0:02:58]} 5. Bg2 {[%clk 0:03:02]}  h5 {[%clk 0:02:58]} 6. d3 {[%clk 0:02:54]}  h4 {[%clk 0:02:58]} 7. Bd2 {[%clk 0:02:53]}  hxg3 {[%clk 0:02:52]} 8. hxg3 {[%clk 0:02:53]}  Rxh1 {[%clk 0:02:52]} 9. Bxh1 {[%clk 0:02:54]}  Nf6 {[%clk 0:02:49]} 10. Nd5 {[%clk 0:02:47]}  Qd8 {[%clk 0:02:45]} 11. Nxf6+ {[%clk 0:02:47]}  gxf6 {[%clk 0:02:43]} 12. Qh5 {[%clk 0:02:47]}  Be6 {[%clk 0:02:39]} 13. Ne2 {[%clk 0:02:44]}  Bd5 {[%clk 0:02:34]} 14. O-O-O {[%clk 0:02:26]}  Bxh1 {[%clk 0:02:32]} 15. Rxh1 {[%clk 0:02:27]}  Nd7 {[%clk 0:02:32]} 16. Nf4 {[%clk 0:02:11]}  Qc7 {[%clk 0:02:13]} 17. Ne6 {[%clk 0:02:09]}  Qd6 {[%clk 0:02:10]} 18. Re1 {[%clk 0:02:00]}  Ne5 {[%clk 0:01:31]} 19. Nxf8 {[%clk 0:01:40]}  O-O-O {[%clk 0:01:31]} 20. f4 {[%clk 0:01:27]}  Nxd3+ {[%clk 0:01:20]} 21. cxd3 {[%clk 0:01:27]}  Qxd3 {[%clk 0:01:20]} 22. Qe2 {[%clk 0:01:26]}  Qd5 {[%clk 0:01:00]} 23. Qxe7 {[%clk 0:00:45]}  Qxd2+ {[%clk 0:01:00]} 24. Kb1 {[%clk 0:00:45]}  Qd3+ {[%clk 0:01:00]} 25. Kc1 {[%clk 0:00:44]}  Qd2+ {[%clk 0:00:56]} 26. Kb1 {[%clk 0:00:44]}  Qd3+ {[%clk 0:00:57]} 27. Kc1 {[%clk 0:00:44]}  Qd2+ {[%clk 0:00:57]} 1/2-1/2


[Site "https://www.chess.com"]

[Event "Titled Tuesday Blitz May 16 Early 2023"]
[White "Popilski, Gil"]
[Black "Zavortink, Matt"]
[WhiteFideId "2809060"]
[BlackFideId "2034263"]
[WhiteElo "2537"]
[BlackElo "2457"]
[Result "1-0"]
[Round "03"]
[TimeControl "180+2"]
[Date "2023.05.16"]
[WhiteClock "0:01:06"]
[BlackClock "0:00:16"]

1. d4 {[%clk 0:03:00]}  d5 {[%clk 0:02:59]} 2. c4 {[%clk 0:02:57]}  c6 {[%clk 0:02:59]} 3. Nf3 {[%clk 0:02:51]}  Nf6 {[%clk 0:02:58]} 4. e3 {[%clk 0:02:49]}  Bf5 {[%clk 0:02:58]} 5. Nc3 {[%clk 0:02:40]}  e6 {[%clk 0:02:58]} 6. Be2 {[%clk 0:02:23]}  h6 {[%clk 0:02:53]} 7. Bd3 {[%clk 0:02:19]}  Bxd3 {[%clk 0:02:50]} 8. Qxd3 {[%clk 0:02:20]}  Nbd7 {[%clk 0:02:48]} 9. O-O {[%clk 0:02:18]}  Bd6 {[%clk 0:02:37]} 10. b3 {[%clk 0:02:17]}  O-O {[%clk 0:02:36]} 11. Bb2 {[%clk 0:02:03]}  Qe7 {[%clk 0:02:15]} 12. e4 {[%clk 0:02:03]}  dxe4 {[%clk 0:02:09]} 13. Nxe4 {[%clk 0:02:04]}  Nxe4 {[%clk 0:02:09]} 14. Qxe4 {[%clk 0:02:04]}  Nf6 {[%clk 0:02:10]} 15. Qe2 {[%clk 0:02:04]}  Ba3 {[%clk 0:02:07]} 16. Bxa3 {[%clk 0:02:01]}  Qxa3 {[%clk 0:02:06]} 17. Rad1 {[%clk 0:01:59]}  Rfd8 {[%clk 0:02:02]} 18. c5 {[%clk 0:01:52]}  b6 {[%clk 0:01:14]} 19. Ne5 {[%clk 0:01:52]}  Rac8 {[%clk 0:01:09]} 20. Qf3 {[%clk 0:01:21]}  Rd5 {[%clk 0:01:02]} 21. Nc4 {[%clk 0:01:20]}  Qa6 {[%clk 0:00:56]} 22. Nd6 {[%clk 0:01:20]}  Rd8 {[%clk 0:00:52]} 23. b4 {[%clk 0:01:20]}  R5xd6 {[%clk 0:00:36]} 24. cxd6 {[%clk 0:01:19]}  Rxd6 {[%clk 0:00:37]} 25. a3 {[%clk 0:01:19]}  Nd5 {[%clk 0:00:35]} 26. Rc1 {[%clk 0:01:18]}  Qc8 {[%clk 0:00:28]} 27. Rc2 {[%clk 0:01:17]}  Qd7 {[%clk 0:00:28]} 28. Rfc1 {[%clk 0:01:17]}  Ne7 {[%clk 0:00:28]} 29. b5 {[%clk 0:01:11]}  cxb5 {[%clk 0:00:26]} 30. Rc7 {[%clk 0:01:09]}  Qd8 {[%clk 0:00:24]} 31. Rxa7 {[%clk 0:01:06]}  Rxd4 {[%clk 0:00:16]} 32. Ra8 {[%clk 0:01:06]} 1-0


[Site "https://www.chess.com"]

[Event "Titled Tuesday Blitz May 16 Early 2023"]
[White "Bettalli, Francesco"]
[Black "Odegov, Artem"]
[WhiteFideId "2816453"]
[BlackFideId "34183644"]
[WhiteElo "2216"]
[BlackElo "2300"]
[Result "1/2-1/2"]
[Round "03"]
[TimeControl "180+2"]
[Date "2023.05.16"]
[WhiteClock "0:01:52"]
[BlackClock "0:00:37"]

1. d4 {[%clk 0:03:00]}  Nf6 {[%clk 0:02:58]} 2. Nc3 {[%clk 0:03:00]}  d5 {[%clk 0:02:58]} 3. Bf4 {[%clk 0:03:00]}  a6 {[%clk 0:02:57]} 4. e3 {[%clk 0:02:59]}  b5 {[%clk 0:02:56]} 5. a3 {[%clk 0:02:57]}  Bb7 {[%clk 0:02:55]} 6. Nf3 {[%clk 0:02:56]}  Nbd7 {[%clk 0:02:53]} 7. Ne5 {[%clk 0:02:57]}  e6 {[%clk 0:02:52]} 8. Bd3 {[%clk 0:02:57]}  Be7 {[%clk 0:02:51]} 9. O-O {[%clk 0:02:57]}  c5 {[%clk 0:02:50]} 10. Qf3 {[%clk 0:02:51]}  Rc8 {[%clk 0:02:48]} 11. Qh3 {[%clk 0:02:51]}  c4 {[%clk 0:02:34]} 12. Be2 {[%clk 0:02:50]}  O-O {[%clk 0:02:34]} 13. g4 {[%clk 0:02:50]}  Ne4 {[%clk 0:02:32]} 14. Nxe4 {[%clk 0:02:46]}  dxe4 {[%clk 0:02:33]} 15. a4 {[%clk 0:02:42]}  Nxe5 {[%clk 0:02:14]} 16. Bxe5 {[%clk 0:02:43]}  Qd5 {[%clk 0:02:14]} 17. axb5 {[%clk 0:02:43]}  axb5 {[%clk 0:02:14]} 18. Ra7 {[%clk 0:02:41]}  f6 {[%clk 0:02:11]} 19. Bg3 {[%clk 0:02:40]}  Ra8 {[%clk 0:02:10]} 20. Rfa1 {[%clk 0:02:40]}  Rxa7 {[%clk 0:02:10]} 21. Rxa7 {[%clk 0:02:40]}  Ra8 {[%clk 0:02:11]} 22. Rxa8+ {[%clk 0:02:40]}  Bxa8 {[%clk 0:02:12]} 23. Qf1 {[%clk 0:02:39]}  Kf7 {[%clk 0:01:46]} 24. Qa1 {[%clk 0:02:39]}  b4 {[%clk 0:01:32]} 25. Qa6 {[%clk 0:02:38]}  c3 {[%clk 0:01:31]} 26. bxc3 {[%clk 0:02:33]}  bxc3 {[%clk 0:01:32]} 27. Bc4 {[%clk 0:02:33]}  Qc6 {[%clk 0:01:30]} 28. Qa2 {[%clk 0:02:25]}  Bb7 {[%clk 0:01:15]} 29. h3 {[%clk 0:02:24]}  Qb6 {[%clk 0:00:58]} 30. Kg2 {[%clk 0:02:07]}  Bc8 {[%clk 0:00:36]} 31. d5 {[%clk 0:02:05]}  exd5 {[%clk 0:00:35]} 32. Bxd5+ {[%clk 0:02:06]}  Be6 {[%clk 0:00:36]} 33. Bc7 {[%clk 0:01:54]}  Qxc7 {[%clk 0:00:28]} 34. Bxe6+ {[%clk 0:01:54]}  Kf8 {[%clk 0:00:24]} 35. Bg8 {[%clk 0:01:51]}  Bc5 {[%clk 0:00:20]} 36. Bxh7 {[%clk 0:01:51]}  Ke7 {[%clk 0:00:11]} 37. Bxe4 {[%clk 0:01:49]}  Qd6 {[%clk 0:00:11]} 38. Qc4 {[%clk 0:01:46]}  Bb6 {[%clk 0:00:09]} 39. Qxc3 {[%clk 0:01:44]}  Kf7 {[%clk 0:00:06]} 40. Qc4+ {[%clk 0:01:43]}  Ke7 {[%clk 0:00:06]} 41. Qd5 {[%clk 0:01:39]}  Qc7 {[%clk 0:00:03]} 42. Qc6 {[%clk 0:01:38]}  Qd8 {[%clk 0:00:03]} 43. Bd5 {[%clk 0:01:35]}  Qd6 {[%clk 0:00:02]} 44. Qxd6+ {[%clk 0:01:34]}  Kxd6 {[%clk 0:00:03]} 45. c4 {[%clk 0:01:35]}  Ke5 {[%clk 0:00:02]} 46. Kf3 {[%clk 0:01:36]}  g5 {[%clk 0:00:02]} 47. Kg3 {[%clk 0:01:34]}  Bc5 {[%clk 0:00:01]} 48. f4+ {[%clk 0:01:34]}  Kd6 {[%clk 0:00:01]} 49. Kf3 {[%clk 0:01:32]}  Ke7 {[%clk 0:00:01]} 50. Ke4 {[%clk 0:01:32]}  Kd6 {[%clk 0:00:02]} 51. Kf5 {[%clk 0:01:32]}  Bxe3 {[%clk 0:00:02]} 52. fxg5 {[%clk 0:01:10]}  fxg5 {[%clk 0:00:03]} 53. Kf6 {[%clk 0:01:11]}  Kc5 {[%clk 0:00:03]} 54. Ke5 {[%clk 0:01:05]}  Bf2 {[%clk 0:00:02]} 55. Kf5 {[%clk 0:01:04]}  Bh4 {[%clk 0:00:03]} 56. Ke4 {[%clk 0:01:03]}  Be1 {[%clk 0:00:02]} 57. Ke5 {[%clk 0:01:04]}  Bh4 {[%clk 0:00:02]} 58. Ke6 {[%clk 0:01:04]}  Bg3 {[%clk 0:00:02]} 59. Kf6 {[%clk 0:01:05]}  Bh4 {[%clk 0:00:03]} 60. Kf5 {[%clk 0:01:06]}  Kd6 {[%clk 0:00:03]} 61. Kg6 {[%clk 0:01:06]}  Kc5 {[%clk 0:00:04]} 62. Kf5 {[%clk 0:01:07]}  Kd6 {[%clk 0:00:04]} 63. Kf6 {[%clk 0:01:08]}  Kc5 {[%clk 0:00:05]} 64. Ke6 {[%clk 0:01:09]}  Bg3 {[%clk 0:00:05]} 65. Kd7 {[%clk 0:01:09]}  Bh4 {[%clk 0:00:06]} 66. Kc7 {[%clk 0:01:10]}  Bg3+ {[%clk 0:00:06]} 67. Kc8 {[%clk 0:01:11]}  Bh4 {[%clk 0:00:07]} 68. Kd8 {[%clk 0:01:12]}  Bg3 {[%clk 0:00:08]} 69. h4 {[%clk 0:01:12]}  Bxh4 {[%clk 0:00:09]} 70. Ke7 {[%clk 0:01:12]}  Bg3 {[%clk 0:00:08]} 71. Kf6 {[%clk 0:01:13]}  Bf4 {[%clk 0:00:09]} 72. Kf5 {[%clk 0:01:14]}  Bc1 {[%clk 0:00:09]} 73. Ke4 {[%clk 0:01:15]}  Bd2 {[%clk 0:00:10]} 74. Kf5 {[%clk 0:01:15]}  Bf4 {[%clk 0:00:11]} 75. Ke6 {[%clk 0:01:16]}  Bc1 {[%clk 0:00:11]} 76. Be4 {[%clk 0:01:17]}  Bf4 {[%clk 0:00:12]} 77. Bf5 {[%clk 0:01:18]}  Bc1 {[%clk 0:00:12]} 78. Ke5 {[%clk 0:01:19]}  Bd2 {[%clk 0:00:13]} 79. Ke4 {[%clk 0:01:19]}  Bf4 {[%clk 0:00:14]} 80. Kd3 {[%clk 0:01:20]}  Bc1 {[%clk 0:00:14]} 81. Be6 {[%clk 0:01:21]}  Bf4 {[%clk 0:00:14]} 82. Bd5 {[%clk 0:01:22]}  Bd6 {[%clk 0:00:14]} 83. Ke4 {[%clk 0:01:23]}  Bc7 {[%clk 0:00:14]} 84. Kf3 {[%clk 0:01:24]}  Bd8 {[%clk 0:00:15]} 85. Kg2 {[%clk 0:01:25]}  Bc7 {[%clk 0:00:15]} 86. Kh3 {[%clk 0:01:26]}  Bd8 {[%clk 0:00:16]} 87. Kg2 {[%clk 0:01:27]}  Bc7 {[%clk 0:00:17]} 88. Kh1 {[%clk 0:01:28]}  Bd8 {[%clk 0:00:18]} 89. Kg1 {[%clk 0:01:28]}  Bc7 {[%clk 0:00:19]} 90. Kf1 {[%clk 0:01:29]}  Bd8 {[%clk 0:00:20]} 91. Ke1 {[%clk 0:01:30]}  Bc7 {[%clk 0:00:20]} 92. Ke2 {[%clk 0:01:31]}  Bd8 {[%clk 0:00:21]} 93. Kd2 {[%clk 0:01:32]}  Bc7 {[%clk 0:00:22]} 94. Kc3 {[%clk 0:01:33]}  Bf4 {[%clk 0:00:23]} 95. Kd3 {[%clk 0:01:34]}  Be5 {[%clk 0:00:23]} 96. Kc2 {[%clk 0:01:35]}  Bf4 {[%clk 0:00:24]} 97. Kb3 {[%clk 0:01:36]}  Bd6 {[%clk 0:00:25]} 98. Ka2 {[%clk 0:01:37]}  Bc7 {[%clk 0:00:26]} 99. Kb2 {[%clk 0:01:37]}  Bd8 {[%clk 0:00:26]} 100. Kb3 {[%clk 0:01:38]}  Bc7 {[%clk 0:00:27]} 101. Ka3 {[%clk 0:01:39]}  Bd8 {[%clk 0:00:28]} 102. Ka4 {[%clk 0:01:40]}  Bc7 {[%clk 0:00:29]} 103. Kb3 {[%clk 0:01:40]}  Bd8 {[%clk 0:00:30]} 104. Kc3 {[%clk 0:01:40]}  Bc7 {[%clk 0:00:31]} 105. Kd3 {[%clk 0:01:41]}  Bf4 {[%clk 0:00:31]} 106. Ke4 {[%clk 0:01:42]}  Bc1 {[%clk 0:00:32]} 107. Kf5 {[%clk 0:01:43]}  Bd2 {[%clk 0:00:32]} 108. Ke6 {[%clk 0:01:44]}  Bf4 {[%clk 0:00:33]} 109. Kf6 {[%clk 0:01:45]}  Bc1 {[%clk 0:00:33]} 110. Kg6 {[%clk 0:01:46]}  Bd2 {[%clk 0:00:34]} 111. Kf5 {[%clk 0:01:47]}  Bc1 {[%clk 0:00:34]} 112. Kf6 {[%clk 0:01:48]}  Bd2 {[%clk 0:00:35]} 113. Kg6 {[%clk 0:01:48]}  Bc1 {[%clk 0:00:36]} 114. Kh6 {[%clk 0:01:49]}  Bd2 {[%clk 0:00:36]} 115. Kh5 {[%clk 0:01:50]}  Bc1 {[%clk 0:00:37]} 116. Kg6 {[%clk 0:01:51]}  Bd2 {[%clk 0:00:37]} 117. Kf5 {[%clk 0:01:52]} 1/2-1/2


[Site "https://www.chess.com"]

[Event "Titled Tuesday Blitz May 16 Early 2023"]
[White "Makaraci, Tunahan"]
[Black "Jumanov, Elbek"]
[WhiteFideId "6356559"]
[BlackFideId "14202905"]
[WhiteElo "2160"]
[BlackElo "2055"]
[Result "0-1"]
[Round "03"]
[TimeControl "180+2"]
[Date "2023.05.16"]
[WhiteClock "0:00:10"]
[BlackClock "0:00:23"]

1. e4 {[%clk 0:03:00]}  c5 {[%clk 0:02:59]} 2. c3 {[%clk 0:03:00]}  d5 {[%clk 0:02:56]} 3. exd5 {[%clk 0:03:01]}  Qxd5 {[%clk 0:02:57]} 4. d4 {[%clk 0:03:01]}  Nc6 {[%clk 0:02:57]} 5. Nf3 {[%clk 0:03:01]}  Bg4 {[%clk 0:02:57]} 6. dxc5 {[%clk 0:03:01]}  Qxd1+ {[%clk 0:02:53]} 7. Kxd1 {[%clk 0:03:02]}  Bxf3+ {[%clk 0:02:51]} 8. gxf3 {[%clk 0:03:02]}  e6 {[%clk 0:02:46]} 9. b4 {[%clk 0:02:58]}  a5 {[%clk 0:02:45]} 10. Bb5 {[%clk 0:02:48]}  axb4 {[%clk 0:02:31]} 11. Bxc6+ {[%clk 0:02:43]}  bxc6 {[%clk 0:02:30]} 12. cxb4 {[%clk 0:02:44]}  Nf6 {[%clk 0:02:28]} 13. Kc2 {[%clk 0:02:41]}  Nd5 {[%clk 0:02:27]} 14. Bd2 {[%clk 0:02:35]}  Be7 {[%clk 0:02:17]} 15. Kb3 {[%clk 0:02:21]}  Kd7 {[%clk 0:01:37]} 16. Nc3 {[%clk 0:02:19]}  Rhb8 {[%clk 0:01:22]} 17. Nxd5 {[%clk 0:02:19]}  exd5 {[%clk 0:01:22]} 18. Be3 {[%clk 0:02:11]}  Bf6 {[%clk 0:01:15]} 19. Rad1 {[%clk 0:02:08]}  Ra7 {[%clk 0:01:11]} 20. Bd4 {[%clk 0:02:03]}  Rba8 {[%clk 0:01:06]} 21. Bxf6 {[%clk 0:01:24]}  Ra3+ {[%clk 0:01:04]} 22. Kc2 {[%clk 0:01:23]}  gxf6 {[%clk 0:01:04]} 23. Rd2 {[%clk 0:00:29]}  Rxa2+ {[%clk 0:01:02]} 24. Kd3 {[%clk 0:00:28]}  R8a3+ {[%clk 0:00:54]} 25. Ke2 {[%clk 0:00:28]}  Rxd2+ {[%clk 0:00:53]} 26. Kxd2 {[%clk 0:00:29]}  Rxf3 {[%clk 0:00:53]} 27. Ra1 {[%clk 0:00:27]}  Rb3 {[%clk 0:00:44]} 28. Ra7+ {[%clk 0:00:27]}  Ke6 {[%clk 0:00:44]} 29. Rb7 {[%clk 0:00:26]}  d4 {[%clk 0:00:42]} 30. Kc2 {[%clk 0:00:25]}  Rc3+ {[%clk 0:00:41]} 31. Kb2 {[%clk 0:00:25]}  Kd5 {[%clk 0:00:41]} 32. Rxf7 {[%clk 0:00:23]}  Rf3 {[%clk 0:00:41]} 33. Rd7+ {[%clk 0:00:14]}  Kc4 {[%clk 0:00:40]} 34. Rd6 {[%clk 0:00:15]}  Rxf2+ {[%clk 0:00:40]} 35. Kc1 {[%clk 0:00:15]}  d3 {[%clk 0:00:33]} 36. Rxc6 {[%clk 0:00:12]}  Kc3 {[%clk 0:00:33]} 37. Kb1 {[%clk 0:00:13]}  d2 {[%clk 0:00:27]} 38. Rd6 {[%clk 0:00:12]}  Rf1+ {[%clk 0:00:24]} 39. Ka2 {[%clk 0:00:12]}  d1=Q {[%clk 0:00:24]} 40. Rxd1 {[%clk 0:00:13]}  Rxd1 {[%clk 0:00:24]} 41. c6 {[%clk 0:00:10]}  Kxb4 {[%clk 0:00:23]} 0-1


[Site "https://www.chess.com"]